[Event "Late-Titled-Tuesday-Blitz-August-29-2023"]
[Site "Chess.com"]
[Date "2023.08.29"]
[Round "4"]
[White "TC2304"]
[Black "ozates"]
[Result "0-1"]
[WhiteElo "2396"]
[BlackElo "2562"]
[TimeControl "180+1"]
[EndTime "14:38:54 PDT"]
[Termination "ozates won by checkmate"]

1. c4 {[%clk 0:03:00.9]} 1... c6 {[%clk 0:02:56.5]} 2. Nf3 {[%clk 0:02:56]} 2...
d5 {[%clk 0:02:56.8]} 3. b3 {[%clk 0:02:56.3]} 3... Bg4 {[%clk 0:02:55.8]} 4.
Ne5 {[%clk 0:02:55.3]} 4... Bf5 {[%clk 0:02:55.8]} 5. d4 {[%clk 0:02:54.4]} 5...
Nd7 {[%clk 0:02:54.7]} 6. Nxd7 {[%clk 0:02:50.5]} 6... Qxd7 {[%clk 0:02:55.6]}
7. Nc3 {[%clk 0:02:46.6]} 7... e5 {[%clk 0:02:46.7]} 8. cxd5 {[%clk 0:02:44.7]}
8... cxd5 {[%clk 0:02:46.3]} 9. e4 {[%clk 0:02:44.8]} 9... Bb4 {[%clk
0:02:43.8]} 10. Bd2 {[%clk 0:02:19.6]} 10... Bxc3 {[%clk 0:02:40.6]} 11. Bxc3
{[%clk 0:02:12.4]} 11... Bxe4 {[%clk 0:02:19.8]} 12. dxe5 {[%clk 0:02:11.4]}
12... Rc8 {[%clk 0:02:20.2]} 13. Rc1 {[%clk 0:02:11]} 13... Ne7 {[%clk
0:02:11.4]} 14. f3 {[%clk 0:02:00.4]} 14... Bg6 {[%clk 0:02:06.7]} 15. h4 {[%clk
0:01:55.6]} 15... h5 {[%clk 0:02:04.6]} 16. Bd3 {[%clk 0:01:54.6]} 16... d4
{[%clk 0:01:53.1]} 17. Bxg6 {[%clk 0:01:46.9]} 17... Nxg6 {[%clk 0:01:54]} 18.
Bb4 {[%clk 0:01:15]} 18... Rxc1 {[%clk 0:01:49.8]} 19. Qxc1 {[%clk 0:01:15.9]}
19... Nxe5 {[%clk 0:01:50.4]} 20. O-O {[%clk 0:01:15.7]} 20... f6 {[%clk
0:01:44.4]} 21. Re1 {[%clk 0:01:06.4]} 21... Kf7 {[%clk 0:01:42.9]} 22. f4
{[%clk 0:01:05.6]} 22... Nc6 {[%clk 0:01:39]} 23. Qc4+ {[%clk 0:01:02.5]} 23...
Kg6 {[%clk 0:01:38.1]} 24. Bc5 {[%clk 0:00:49.5]} 24... Re8 {[%clk 0:01:31]} 25.
f5+ {[%clk 0:00:46.1]} 25... Kh7 {[%clk 0:01:22.4]} 26. Re6 {[%clk 0:00:43.6]}
26... d3 {[%clk 0:01:17]} 27. Rxe8 {[%clk 0:00:40.1]} 27... Qxe8 {[%clk
0:01:14.4]} 28. Qxd3 {[%clk 0:00:40.3]} 28... Qe1+ {[%clk 0:01:14.3]} 29. Qf1
{[%clk 0:00:38.2]} 29... Qxh4 {[%clk 0:01:14.1]} 30. Qe2 {[%clk 0:00:29]} 30...
b6 {[%clk 0:00:59.2]} 31. Bf2 {[%clk 0:00:26.3]} 31... Qg5 {[%clk 0:00:57.8]}
32. Qe4 {[%clk 0:00:19.1]} 32... Ne5 {[%clk 0:00:58]} 33. Kh2 {[%clk 0:00:17.9]}
33... Ng4+ {[%clk 0:00:54.1]} 34. Kg1 {[%clk 0:00:18.5]} 34... Qc1+ {[%clk
0:00:47.6]} 35. Be1 {[%clk 0:00:17.4]} 35... Qc5+ {[%clk 0:00:43.1]} 36. Kf1
{[%clk 0:00:17.5]} 36... Ne3+ {[%clk 0:00:37.8]} 37. Ke2 {[%clk 0:00:17.8]}
37... Nxf5 {[%clk 0:00:37]} 38. Bd2 {[%clk 0:00:17]} 38... g6 {[%clk 0:00:32.2]}
39. Qb7+ {[%clk 0:00:16.2]} 39... Qe7+ {[%clk 0:00:31.9]} 40. Qxe7+ {[%clk
0:00:16]} 40... Nxe7 {[%clk 0:00:32.8]} 41. Kd3 {[%clk 0:00:16.1]} 41... g5
{[%clk 0:00:31.2]} 42. Kc4 {[%clk 0:00:16.6]} 42... Kg6 {[%clk 0:00:32.1]} 43.
Kb5 {[%clk 0:00:17]} 43... f5 {[%clk 0:00:32]} 44. Ka6 {[%clk 0:00:17.5]} 44...
Nd5 {[%clk 0:00:28.6]} 45. Kxa7 {[%clk 0:00:16.6]} 45... h4 {[%clk 0:00:29.2]}
46. Kb7 {[%clk 0:00:14.9]} 46... g4 {[%clk 0:00:28.3]} 47. Kc6 {[%clk
0:00:15.4]} 47... h3 {[%clk 0:00:27.2]} 48. gxh3 {[%clk 0:00:08.2]} 48... gxh3
{[%clk 0:00:28.1]} 49. Bf4 {[%clk 0:00:06.1]} 49... Nxf4 {[%clk 0:00:28.2]} 50.
Kxb6 {[%clk 0:00:05.9]} 50... h2 {[%clk 0:00:29.1]} 51. a4 {[%clk 0:00:06.4]}
51... h1=Q {[%clk 0:00:30]} 52. a5 {[%clk 0:00:07.3]} 52... Ne6 {[%clk
0:00:27.6]} 53. b4 {[%clk 0:00:07]} 53... f4 {[%clk 0:00:24.2]} 54. b5 {[%clk
0:00:06.1]} 54... f3 {[%clk 0:00:24.6]} 55. a6 {[%clk 0:00:07]} 55... f2 {[%clk
0:00:25]} 56. Ka7 {[%clk 0:00:07.9]} 56... f1=Q {[%clk 0:00:25.1]} 57. b6 {[%clk
0:00:08.8]} 57... Nc5 {[%clk 0:00:21.9]} 58. b7 {[%clk 0:00:09.7]} 58... Qxa6+
{[%clk 0:00:21.7]} 59. Kb8 {[%clk 0:00:09.2]} 59... Qhxb7# {[%clk 0:00:22.4]}
0-1

[Event "Late-Titled-Tuesday-Blitz-August-29-2023"]
[Site "Chess.com"]
[Date "2023.08.29"]
[Round "4"]
[White "MaxLeto"]
[Black "NotFischer"]
[Result "0-1"]
[WhiteElo "2427"]
[BlackElo "2260"]
[TimeControl "180+1"]
[EndTime "14:38:54 PDT"]
[Termination "NotFischer won on time"]

1. g4 {[%clk 0:02:55.9]} 1... d5 {[%clk 0:02:56]} 2. Bg2 {[%clk 0:02:55.7]} 2...
e6 {[%clk 0:02:50.8]} 3. d4 {[%clk 0:02:52]} 3... Bd6 {[%clk 0:02:44.6]} 4. Nf3
{[%clk 0:02:35.5]} 4... Nd7 {[%clk 0:02:43.4]} 5. Bg5 {[%clk 0:02:31.7]} 5...
Ngf6 {[%clk 0:02:42.7]} 6. Bh4 {[%clk 0:02:19.6]} 6... h6 {[%clk 0:02:36.9]} 7.
g5 {[%clk 0:02:13.7]} 7... hxg5 {[%clk 0:02:36.2]} 8. Bxg5 {[%clk 0:02:14.6]}
8... c5 {[%clk 0:02:35.5]} 9. c3 {[%clk 0:02:14.2]} 9... Qb6 {[%clk 0:02:34.5]}
10. Qb3 {[%clk 0:02:06.2]} 10... Ne4 {[%clk 0:02:32.3]} 11. Be3 {[%clk
0:02:01.5]} 11... c4 {[%clk 0:02:25.4]} 12. Qc2 {[%clk 0:02:00.5]} 12... Ndf6
{[%clk 0:02:17.8]} 13. Nbd2 {[%clk 0:01:57.2]} 13... Bd7 {[%clk 0:02:08.5]} 14.
Nxe4 {[%clk 0:01:50.6]} 14... Nxe4 {[%clk 0:02:07.7]} 15. h4 {[%clk 0:01:48.6]}
15... a5 {[%clk 0:01:57.1]} 16. Ng5 {[%clk 0:01:33.8]} 16... Nxg5 {[%clk
0:01:52.8]} 17. hxg5 {[%clk 0:01:30.8]} 17... Rxh1+ {[%clk 0:01:52]} 18. Bxh1
{[%clk 0:01:31.7]} 18... g6 {[%clk 0:01:51.5]} 19. Bd2 {[%clk 0:01:18.8]} 19...
Bc6 {[%clk 0:01:46.7]} 20. O-O-O {[%clk 0:01:13.4]} 20... a4 {[%clk 0:01:45.7]}
21. a3 {[%clk 0:01:13.8]} 21... Ra5 {[%clk 0:01:38.9]} 22. e4 {[%clk 0:00:57]}
22... dxe4 {[%clk 0:01:34.1]} 23. Bxe4 {[%clk 0:00:56.6]} 23... Bxe4 {[%clk
0:01:34.3]} 24. Qxe4 {[%clk 0:00:57.4]} 24... Qb3 {[%clk 0:01:34.4]} 25. Rh1
{[%clk 0:00:18]} 25... Rb5 {[%clk 0:00:40.2]} 26. Qc2 {[%clk 0:00:14.4]} 26...
Qa2 {[%clk 0:00:39.1]} 27. Qb1 {[%clk 0:00:01.9]} 27... Qxb1+ {[%clk 0:00:36.9]}
28. Kxb1 {[%clk 0:00:02.8]} 28... Bxa3 {[%clk 0:00:36.9]} 29. Bc1 {[%clk
0:00:03.7]} 29... Bd6 {[%clk 0:00:34.8]} 30. Ka2 {[%clk 0:00:03.3]} 30... Rb3
{[%clk 0:00:32]} 31. Rh8+ {[%clk 0:00:03.1]} 31... Kd7 {[%clk 0:00:30.6]} 32.
Ra8 {[%clk 0:00:04]} 32... a3 {[%clk 0:00:27.5]} 33. Ra7 {[%clk 0:00:02.3]}
33... Kc7 {[%clk 0:00:20.8]} 34. Ra5 {[%clk 0:00:02]} 34... Kb6 {[%clk
0:00:16.6]} 35. Ra4 {[%clk 0:00:02]} 35... Kb5 {[%clk 0:00:16.1]} 36. Ra8 {[%clk
0:00:01.9]} 36... axb2 {[%clk 0:00:14.6]} 37. Bxb2 {[%clk 0:00:02.5]} 37... Bf4
{[%clk 0:00:14.3]} 38. Rf8 {[%clk 0:00:02.4]} 38... Bd2 {[%clk 0:00:10.9]} 39.
Rxf7 {[%clk 0:00:02.3]} 39... Kc6 {[%clk 0:00:10.4]} 40. Rf6 {[%clk 0:00:01.7]}
40... Bxg5 {[%clk 0:00:09.4]} 41. Rxe6+ {[%clk 0:00:01.6]} 41... Kc7 {[%clk
0:00:08.8]} 42. Rxg6 {[%clk 0:00:02.5]} 42... Bd2 {[%clk 0:00:08.3]} 43. Rg7+
{[%clk 0:00:03]} 43... Kc6 {[%clk 0:00:08.4]} 44. Rg6+ {[%clk 0:00:03.1]} 44...
Kc7 {[%clk 0:00:08.8]} 45. Rg3 {[%clk 0:00:03.8]} 45... b5 {[%clk 0:00:06.4]}
46. Rf3 {[%clk 0:00:03.8]} 46... b4 {[%clk 0:00:05.8]} 47. Rd3 {[%clk
0:00:04.1]} 47... bxc3 {[%clk 0:00:05.3]} 48. Bxc3 {[%clk 0:00:01.5]} 48... Bxc3
{[%clk 0:00:06.2]} 49. Rxc3 {[%clk 0:00:01.3]} 49... Rxc3 {[%clk 0:00:06.4]} 50.
d5 {[%clk 0:00:01.4]} 50... Rd3 {[%clk 0:00:06.8]} 51. d6+ {[%clk 0:00:01.4]}
51... Rxd6 {[%clk 0:00:07]} 0-1

[Event "Late-Titled-Tuesday-Blitz-August-29-2023"]
[Site "Chess.com"]
[Date "2023.08.29"]
[Round "4"]
[White "YQPerez"]
[Black "Ramosha"]
[Result "1-0"]
[WhiteElo "2900"]
[BlackElo "2618"]
[TimeControl "180+1"]
[EndTime "14:38:55 PDT"]
[Termination "YQPerez won by resignation"]

1. e4 {[%clk 0:03:00.9]} 1... c6 {[%clk 0:02:58.1]} 2. d4 {[%clk 0:02:58.8]}
2... d5 {[%clk 0:02:57.9]} 3. exd5 {[%clk 0:02:59.2]} 3... cxd5 {[%clk
0:02:58.8]} 4. Bd3 {[%clk 0:02:59.9]} 4... Nc6 {[%clk 0:02:58.3]} 5. c3 {[%clk
0:03:00.6]} 5... Nf6 {[%clk 0:02:58.1]} 6. Bf4 {[%clk 0:02:58.7]} 6... Bg4
{[%clk 0:02:57.8]} 7. Qb3 {[%clk 0:02:58.5]} 7... Qc8 {[%clk 0:02:55]} 8. Nd2
{[%clk 0:02:58.2]} 8... g6 {[%clk 0:02:54.9]} 9. Ngf3 {[%clk 0:02:57]} 9... Bg7
{[%clk 0:02:55]} 10. O-O {[%clk 0:02:57]} 10... O-O {[%clk 0:02:54.9]} 11. Rae1
{[%clk 0:02:54]} 11... a6 {[%clk 0:02:52.9]} 12. h3 {[%clk 0:02:50.6]} 12... Bf5
{[%clk 0:02:52.7]} 13. Bxf5 {[%clk 0:02:50.3]} 13... gxf5 {[%clk 0:02:53.6]} 14.
Ne5 {[%clk 0:02:48.2]} 14... e6 {[%clk 0:02:53.7]} 15. Nd3 {[%clk 0:02:41.3]}
15... Ne4 {[%clk 0:02:49.6]} 16. Qd1 {[%clk 0:02:39.1]} 16... b5 {[%clk
0:02:45.9]} 17. Qh5 {[%clk 0:02:31.9]} 17... Kh8 {[%clk 0:02:42.8]} 18. Nf3
{[%clk 0:02:16.7]} 18... Nf6 {[%clk 0:02:39.6]} 19. Qh4 {[%clk 0:02:16.2]} 19...
Ne7 {[%clk 0:02:36.1]} 20. Nde5 {[%clk 0:02:13.8]} 20... Kg8 {[%clk 0:02:27.2]}
21. Ng5 {[%clk 0:02:10.4]} 21... Qd8 {[%clk 0:02:14.9]} 22. Re3 {[%clk
0:02:02.3]} 22... h6 {[%clk 0:02:12.4]} 23. Ngf3 {[%clk 0:01:51.6]} 23... Kh7
{[%clk 0:02:10.2]} 24. g4 {[%clk 0:01:30.1]} 24... fxg4 {[%clk 0:02:05.2]} 25.
hxg4 {[%clk 0:01:29.6]} 25... Ng6 {[%clk 0:02:05.3]} 26. Nxg6 {[%clk 0:01:27.8]}
26... fxg6 {[%clk 0:02:06.2]} 27. Ng5+ {[%clk 0:01:25.9]} 27... Kg8 {[%clk
0:02:00.6]} 28. Nxe6 {[%clk 0:01:26.1]} 28... Qd7 {[%clk 0:01:58.8]} 29. Nxg7
{[%clk 0:01:07.8]} 29... Qxg7 {[%clk 0:01:45]} 30. Bxh6 {[%clk 0:01:07]} 30...
Qh7 {[%clk 0:01:44.2]} 31. f3 {[%clk 0:01:06.1]} 31... Rf7 {[%clk 0:00:52.3]}
32. Rfe1 {[%clk 0:01:05]} 32... Kh8 {[%clk 0:00:46.5]} 33. Bg5 {[%clk 0:00:56]}
33... Qxh4 {[%clk 0:00:44.7]} 34. Bxh4 {[%clk 0:00:56.9]} 34... Ng8 {[%clk
0:00:43.9]} 35. Kg2 {[%clk 0:00:56.7]} 35... Kg7 {[%clk 0:00:41]} 36. Re8 {[%clk
0:00:53.4]} 36... Raa7 {[%clk 0:00:39.1]} 37. Bg5 {[%clk 0:00:52.3]} 37... Rfd7
{[%clk 0:00:33.4]} 38. Rb8 {[%clk 0:00:47.7]} 38... Rab7 {[%clk 0:00:30.4]} 39.
Rxb7 {[%clk 0:00:46.1]} 39... Rxb7 {[%clk 0:00:31.3]} 40. Re6 {[%clk 0:00:46.6]}
40... b4 {[%clk 0:00:30.5]} 41. Rxa6 {[%clk 0:00:45.2]} 41... bxc3 {[%clk
0:00:30.5]} 42. bxc3 {[%clk 0:00:46.1]} 42... Rb2+ {[%clk 0:00:30.2]} 43. Kg3
{[%clk 0:00:46.7]} 43... Rc2 {[%clk 0:00:29.9]} 44. Ra7+ {[%clk 0:00:43.2]}
44... Kf8 {[%clk 0:00:29.6]} 45. a4 {[%clk 0:00:41.3]} 45... Rxc3 {[%clk
0:00:29.6]} 46. a5 {[%clk 0:00:41.8]} 46... Ra3 {[%clk 0:00:29]} 47. a6 {[%clk
0:00:41.5]} 47... Ra4 {[%clk 0:00:29]} 48. Ra8+ {[%clk 0:00:37.4]} 48... Kf7
{[%clk 0:00:25.3]} 49. a7 {[%clk 0:00:37.2]} 49... Ra2 {[%clk 0:00:23.2]} 50.
Kf4 {[%clk 0:00:36.1]} 50... Ra6 {[%clk 0:00:21.1]} 51. Ke5 {[%clk 0:00:35.2]}
51... Kg7 {[%clk 0:00:17.2]} 52. Kxd5 {[%clk 0:00:33.2]} 52... Kf7 {[%clk
0:00:15.4]} 53. Kc4 {[%clk 0:00:30.7]} 53... Ra1 {[%clk 0:00:10.2]} 54. d5
{[%clk 0:00:30.8]} 54... Nf6 {[%clk 0:00:09.4]} 55. Bxf6 {[%clk 0:00:30.6]}
55... Kxf6 {[%clk 0:00:10.3]} 56. Rf8+ {[%clk 0:00:30.2]} 1-0

[Event "Late-Titled-Tuesday-Blitz-August-29-2023"]
[Site "Chess.com"]
[Date "2023.08.29"]
[Round "4"]
[White "Mikhail_Bryakin"]
[Black "djano"]
[Result "0-1"]
[WhiteElo "2804"]
[BlackElo "2576"]
[TimeControl "180+1"]
[EndTime "14:38:56 PDT"]
[Termination "djano won by resignation"]

1. c4 {[%clk 0:02:57.1]} 1... e6 {[%clk 0:02:59.4]} 2. Nc3 {[%clk 0:02:51.2]}
2... d5 {[%clk 0:03:00.3]} 3. e3 {[%clk 0:02:51.4]} 3... Nf6 {[%clk 0:02:58.9]}
4. Qc2 {[%clk 0:02:50.4]} 4... c5 {[%clk 0:02:57.4]} 5. Nf3 {[%clk 0:02:48.1]}
5... Nc6 {[%clk 0:02:55.1]} 6. cxd5 {[%clk 0:02:42.2]} 6... exd5 {[%clk
0:02:55]} 7. Bb5 {[%clk 0:02:41.7]} 7... Bd6 {[%clk 0:02:49.5]} 8. d4 {[%clk
0:02:40.6]} 8... cxd4 {[%clk 0:02:47]} 9. Nxd4 {[%clk 0:02:40.4]} 9... O-O
{[%clk 0:02:45]} 10. Nxc6 {[%clk 0:02:36.2]} 10... bxc6 {[%clk 0:02:45.9]} 11.
Bxc6 {[%clk 0:02:36.7]} 11... Ba6 {[%clk 0:02:28.9]} 12. Bxa8 {[%clk 0:02:36.1]}
12... Qxa8 {[%clk 0:02:29.6]} 13. Qa4 {[%clk 0:02:34.2]} 13... Qb7 {[%clk
0:02:18.1]} 14. Qd4 {[%clk 0:02:23.9]} 14... Re8 {[%clk 0:02:09.2]} 15. Ne2
{[%clk 0:02:00.8]} 15... Qb5 {[%clk 0:01:49.9]} 16. Nc3 {[%clk 0:01:54.6]} 16...
Qb7 {[%clk 0:01:49]} 17. Bd2 {[%clk 0:01:51.9]} 17... Be5 {[%clk 0:01:43.9]} 18.
Qa4 {[%clk 0:01:50.5]} 18... d4 {[%clk 0:01:41.2]} 19. Ne2 {[%clk 0:01:49.1]}
19... dxe3 {[%clk 0:01:33.7]} 20. Bxe3 {[%clk 0:01:48.6]} 20... Bxe2 {[%clk
0:01:20.6]} 21. Kxe2 {[%clk 0:01:49.5]} 21... Qxb2+ {[%clk 0:01:20.4]} 22. Kf3
{[%clk 0:01:49.7]} 22... Qb7+ {[%clk 0:01:19.5]} 23. Ke2 {[%clk 0:01:48.9]}
23... Bxa1 {[%clk 0:01:18.8]} 24. Rd1 {[%clk 0:01:41.3]} 24... Be5 {[%clk
0:01:02.9]} 25. h3 {[%clk 0:01:33]} 25... a6 {[%clk 0:01:01.4]} 26. Kf1 {[%clk
0:01:32]} 26... Qb5+ {[%clk 0:01:00.5]} 27. Qxb5 {[%clk 0:01:32.6]} 27... axb5
{[%clk 0:01:01.4]} 28. Rb1 {[%clk 0:01:32.8]} 28... Rb8 {[%clk 0:00:58.8]} 29.
Bc5 {[%clk 0:01:33.4]} 29... Ne4 {[%clk 0:00:57.1]} 30. Bb4 {[%clk 0:01:33.7]}
30... Bc3 {[%clk 0:00:56.7]} 31. Ke2 {[%clk 0:01:31.8]} 31... Bxb4 {[%clk
0:00:53.3]} 32. Rxb4 {[%clk 0:01:32.7]} 32... Nd6 {[%clk 0:00:48.7]} 33. Kd3
{[%clk 0:01:32.5]} 33... Ra8 {[%clk 0:00:48]} 34. Rb2 {[%clk 0:01:30.9]} 34...
Kf8 {[%clk 0:00:47]} 35. Kd4 {[%clk 0:01:30.8]} 35... Ke7 {[%clk 0:00:47]} 36.
Kc5 {[%clk 0:01:31.4]} 36... Rc8+ {[%clk 0:00:46.7]} 37. Kd5 {[%clk 0:01:31.4]}
37... Ra8 {[%clk 0:00:40.4]} 38. Rd2 {[%clk 0:01:29.3]} 38... f6 {[%clk
0:00:34.1]} 39. f3 {[%clk 0:01:23.7]} 39... Nc4 {[%clk 0:00:30.4]} 40. Re2+
{[%clk 0:01:23.6]} 40... Kd7 {[%clk 0:00:30.9]} 41. Kc5 {[%clk 0:01:23.7]} 41...
Nd6 {[%clk 0:00:28.3]} 42. Kd5 {[%clk 0:01:22.3]} 42... b4 {[%clk 0:00:24.9]}
43. Kc5 {[%clk 0:01:21.2]} 43... Rb8 {[%clk 0:00:21.6]} 44. Rd2 {[%clk
0:01:20.2]} 44... Rb5+ {[%clk 0:00:21.8]} 45. Kd4 {[%clk 0:01:20.9]} 45... Ra5
{[%clk 0:00:20]} 46. Rb2 {[%clk 0:01:19.5]} 46... Rb5 {[%clk 0:00:18.3]} 47. Rb1
{[%clk 0:01:17.6]} 47... g5 {[%clk 0:00:18.3]} 48. g4 {[%clk 0:01:16]} 48... h6
{[%clk 0:00:18.6]} 49. Rb2 {[%clk 0:01:15.4]} 49... Kc6 {[%clk 0:00:18.3]} 50.
Re2 {[%clk 0:01:15.4]} 50... Kd7 {[%clk 0:00:18.3]} 51. Rb2 {[%clk 0:01:15.2]}
51... Rb7 {[%clk 0:00:18]} 52. Kc5 {[%clk 0:01:14.9]} 52... Rc7+ {[%clk
0:00:16.7]} 53. Kd5 {[%clk 0:01:14.5]} 53... Rc4 {[%clk 0:00:15.9]} 54. Re2
{[%clk 0:01:13.2]} 54... Rc3 {[%clk 0:00:15.8]} 55. Rb2 {[%clk 0:01:09.5]} 55...
Rd3+ {[%clk 0:00:15.4]} 56. Kc5 {[%clk 0:01:10.1]} 56... Rxf3 {[%clk 0:00:15.3]}
57. Rxb4 {[%clk 0:01:10.2]} 57... Nc8 {[%clk 0:00:13.7]} 58. Kd5 {[%clk
0:01:05.2]} 58... Ne7+ {[%clk 0:00:13.4]} 59. Kc5 {[%clk 0:01:05.4]} 59... Rc3+
{[%clk 0:00:13.3]} 60. Kd4 {[%clk 0:01:03.4]} 60... Rxh3 {[%clk 0:00:14.2]} 61.
Rb7+ {[%clk 0:01:02.7]} 61... Ke6 {[%clk 0:00:14.3]} 62. a4 {[%clk 0:01:03]}
62... Ra3 {[%clk 0:00:13.8]} 63. Rb6+ {[%clk 0:01:01.6]} 63... Kf7 {[%clk
0:00:14.2]} 64. Ra6 {[%clk 0:01:02.5]} 64... Rg3 {[%clk 0:00:11.7]} 65. a5
{[%clk 0:01:01.4]} 65... Rxg4+ {[%clk 0:00:12.2]} 66. Kc5 {[%clk 0:01:02.3]}
66... Ra4 {[%clk 0:00:12]} 67. Ra8 {[%clk 0:01:02.9]} 67... g4 {[%clk
0:00:11.4]} 68. Kb5 {[%clk 0:01:02.6]} 68... Ra1 {[%clk 0:00:11]} 69. Rd8 {[%clk
0:01:01.9]} 69... g3 {[%clk 0:00:11]} 70. Rd2 {[%clk 0:00:58.6]} 70... h5 {[%clk
0:00:11.2]} 71. a6 {[%clk 0:00:59.4]} 71... h4 {[%clk 0:00:10.5]} 72. Rg2 {[%clk
0:00:59.1]} 72... f5 {[%clk 0:00:10.4]} 73. Kb6 {[%clk 0:00:58.8]} 73... f4
{[%clk 0:00:10.8]} 74. Rb2 {[%clk 0:00:58]} 74... f3 {[%clk 0:00:10.4]} 75. a7
{[%clk 0:00:57.7]} 75... f2 {[%clk 0:00:09.9]} 76. Rb3 {[%clk 0:00:57.4]} 76...
f1=Q {[%clk 0:00:09.8]} 0-1

[Event "Late-Titled-Tuesday-Blitz-August-29-2023"]
[Site "Chess.com"]
[Date "2023.08.29"]
[Round "4"]
[White "Vladimir_Zakhartsov"]
[Black "GMG"]
[Result "0-1"]
[WhiteElo "2909"]
[BlackElo "2771"]
[TimeControl "180+1"]
[EndTime "14:38:58 PDT"]
[Termination "GMG won on time"]

1. d4 {[%clk 0:02:59.6]} 1... f5 {[%clk 0:02:58.6]} 2. Bg5 {[%clk 0:02:57.6]}
2... c6 {[%clk 0:02:56.9]} 3. e3 {[%clk 0:02:43.1]} 3... Qb6 {[%clk 0:02:51.4]}
4. Qc1 {[%clk 0:02:40.3]} 4... h6 {[%clk 0:02:50.2]} 5. Bh4 {[%clk 0:02:38.7]}
5... g5 {[%clk 0:02:47.2]} 6. Bg3 {[%clk 0:02:38.8]} 6... Nf6 {[%clk 0:02:45.7]}
7. Bd3 {[%clk 0:02:35.4]} 7... d6 {[%clk 0:02:45.4]} 8. Nd2 {[%clk 0:02:31.4]}
8... Nh5 {[%clk 0:02:36.2]} 9. c3 {[%clk 0:02:31.3]} 9... e6 {[%clk 0:02:25.6]}
10. Ne2 {[%clk 0:02:24.6]} 10... Nd7 {[%clk 0:02:23.4]} 11. h4 {[%clk
0:02:14.2]} 11... Nxg3 {[%clk 0:02:21.3]} 12. Nxg3 {[%clk 0:02:04.5]} 12... g4
{[%clk 0:02:16.8]} 13. Qc2 {[%clk 0:02:00.9]} 13... Nf6 {[%clk 0:02:09.7]} 14.
Ne2 {[%clk 0:01:51.3]} 14... d5 {[%clk 0:02:05]} 15. g3 {[%clk 0:01:44.2]} 15...
Bd6 {[%clk 0:01:54.1]} 16. c4 {[%clk 0:01:44.2]} 16... Qd8 {[%clk 0:01:38.9]}
17. cxd5 {[%clk 0:01:41.7]} 17... cxd5 {[%clk 0:01:38.7]} 18. O-O {[%clk
0:01:35.8]} 18... Bd7 {[%clk 0:01:38.1]} 19. Rac1 {[%clk 0:01:34.6]} 19... Kf7
{[%clk 0:01:35.4]} 20. Qb3 {[%clk 0:01:31.7]} 20... Qb6 {[%clk 0:01:34.9]} 21.
Bb1 {[%clk 0:01:13.9]} 21... Qxb3 {[%clk 0:01:30]} 22. Nxb3 {[%clk 0:01:14.1]}
22... b6 {[%clk 0:01:29.1]} 23. Bd3 {[%clk 0:01:13.8]} 23... a6 {[%clk
0:01:24.9]} 24. Rc2 {[%clk 0:01:12.3]} 24... Rhc8 {[%clk 0:01:22.2]} 25. Rfc1
{[%clk 0:01:12.3]} 25... Rxc2 {[%clk 0:01:21.6]} 26. Rxc2 {[%clk 0:01:13.2]}
26... Ne4 {[%clk 0:01:18.9]} 27. Nf4 {[%clk 0:01:10.9]} 27... a5 {[%clk
0:01:13.5]} 28. Nd2 {[%clk 0:01:08.3]} 28... a4 {[%clk 0:01:11.5]} 29. a3 {[%clk
0:01:05.4]} 29... b5 {[%clk 0:01:07]} 30. Nxe4 {[%clk 0:01:00.8]} 30... dxe4
{[%clk 0:01:03.8]} 31. Bf1 {[%clk 0:01:00.7]} 31... Rb8 {[%clk 0:00:59.5]} 32.
Ne2 {[%clk 0:00:53.5]} 32... b4 {[%clk 0:00:55.1]} 33. axb4 {[%clk 0:00:52.7]}
33... Bxb4 {[%clk 0:00:53.2]} 34. Nc1 {[%clk 0:00:45.7]} 34... Bd6 {[%clk
0:00:29.6]} 35. Be2 {[%clk 0:00:35.4]} 35... Ke7 {[%clk 0:00:26.1]} 36. Kf1
{[%clk 0:00:34.6]} 36... e5 {[%clk 0:00:26.4]} 37. d5 {[%clk 0:00:34.6]} 37...
a3 {[%clk 0:00:15.4]} 38. bxa3 {[%clk 0:00:32.8]} 38... Rb1 {[%clk 0:00:14.7]}
39. Kg2 {[%clk 0:00:30.5]} 39... f4 {[%clk 0:00:14.6]} 40. exf4 {[%clk
0:00:30.3]} 40... exf4 {[%clk 0:00:14.3]} 41. gxf4 {[%clk 0:00:30.8]} 41... Bxf4
{[%clk 0:00:13.2]} 42. Na2 {[%clk 0:00:31.5]} 42... e3 {[%clk 0:00:11]} 43. Rc4
{[%clk 0:00:26]} 43... Rb2 {[%clk 0:00:05.8]} 44. Nc3 {[%clk 0:00:22.9]} 44...
Be5 {[%clk 0:00:05.4]} 45. Kf1 {[%clk 0:00:12]} 45... exf2 {[%clk 0:00:03.8]}
46. Nd1 {[%clk 0:00:08.5]} 46... g3 {[%clk 0:00:03.9]} 47. Bg4 {[%clk
0:00:04.3]} 47... Bxg4 {[%clk 0:00:01.9]} 48. Rxg4 {[%clk 0:00:04.7]} 48... Rb1
{[%clk 0:00:01.5]} 0-1